bitfinex-derivatives/quotes_SOLF0:USTF0_20241227
["timestamp","ask_amount","ask_price","bid_price","bid_amount"]
[1735321073559,2.6993,185.52,185.49,19.99110386]
[1735321073860,19.99110386,185.59,185.43,19.99110386]
[1735321074261,19.99110386,185.59,185.5,5.06886367]
[1735321074864,2.6997,185.5,185.44,2.7004]
[1735321075060,2.6997,185.5,185.45,13.19461557]
[1735321075261,2.6997,185.49,185.45,13.19461557]
[1735321075766,19.99110386,185.59,185.46,5.07894123]
[1735321075966,2.7,185.48,185.46,5.07894123]
[1735321076266,19.99110386,185.59,185.47,5.07894123]
[1735321076569,19.99110386,185.56,185.48,13.2052472]
[1735321076768,2.6997,185.49,185.46,5.07894123]
[1735321076968,3.1809,185.55,185.46,5.07894123]
[1735321077267,3.1809,185.55,185.47,5.07894123]
[1735321077561,2.6998,185.48,185.47,5.07894123]
[1735321077956,1.5893,185.54,185.45,13.19461557]
[1735321078265,2.7001,185.46,185.45,13.19461557]
[1735321078771,2.7001,185.46,185.45,18.28761854]
[1735321079162,2.7001,185.46,185.45,13.19461557]
[1735321079969,2.7001,185.46,185.45,18.28921661]
[1735321080867,2.7001,185.46,185.45,5.09460104]
[1735321081269,19.99110386,185.53,185.4,8.15838395]
[1735321081564,19.99110386,185.53,185.39,8.93269858]
[1735321081565,19.99110386,185.53,185.41,13.2571428]
[1735321081970,19.99110386,185.53,185.42,13.2571428]
[1735321082171,19.99110386,185.53,185.43,13.2571428]
[1735321082571,19.99110386,185.53,185.44,13.2571428]
[1735321082864,2.7003,185.45,185.44,10.7267428]
[1735321083170,1.5893,185.54,185.39,29.58559434]
[1735321083171,19.99110386,185.47,185.39,29.58559434]
[1735321083364,3.157,185.44,185.39,29.58559434]
[1735321083561,3.157,185.44,185.38,7.39639858]
[1735321083973,2.7011,185.39,185.38,7.39639858]
[1735321084467,3.157,185.44,185.37,22.18919576]
[1735321084663,2.7013,185.38,185.37,22.18919576]
[1735321085171,2.7013,185.38,185.31,32.91997605]
[1735321085172,2.702,185.33,185.32,22.18919576]
[1735321086272,2.702,185.33,185.31,59.17118871]
[1735321086273,19.99110386,185.36,185.25,22.18919576]
[1735321086460,19.99110386,185.42,185.25,22.18919576]
[1735321086663,19.99110386,185.42,185.26,8.86877553]
[1735321086864,3.157,185.44,185.29,19.99110386]
[1735321087062,3.157,185.44,185.3,13.58197553]
[1735321087264,3.157,185.44,185.31,4.69590248]
[1735321087464,3.157,185.44,185.3,9.61676536]
[1735321087670,3.157,185.44,185.3,3.057]
[1735321088067,2.7025,185.3,185.28,4.90739004]
[1735321088271,3.157,185.44,185.29,4.69909069]
[1735321088469,3.157,185.44,185.3,4.6995084]
[1735321088673,3.157,185.44,185.26,19.99110386]
[1735321088674,3.157,185.44,185.27,4.17572414]
[1735321088968,3.157,185.44,185.28,9.60605682]
[1735321089173,3.157,185.44,185.29,4.69878044]
[1735321089371,3.157,185.44,185.27,4.17542094]
[1735321089671,3.157,185.44,185.28,4.6974664]
[1735321089967,1.6433,185.43,185.26,19.99110386]
[1735321090169,1.6433,185.43,185.27,9.61451544]
[1735321090472,1.6433,185.43,185.28,4.70485437]
[1735321090473,2.7027,185.29,185.28,4.70485437]
[1735321090672,19.99110386,185.39,185.25,1.5304]
[1735321090867,19.99110386,185.39,185.26,9.61953185]
[1735321090868,2.703,185.27,185.26,9.61953185]
[1735321091066,2.703,185.27,185.26,4.91406233]
[1735321091263,4.7951,185.34,185.22,4.91406233]
[1735321091574,4.7951,185.34,185.23,4.70806155]
[1735321091874,4.7951,185.34,185.24,13.80439886]
[1735321092078,4.7951,185.34,185.25,4.7068488]
[1735321092377,4.7951,185.34,185.25,4.91505722]
[1735321092666,4.7951,185.34,185.26,4.70558717]
[1735321092863,19.99110386,185.39,185.27,4.70316456]
[1735321093067,2.7024,185.31,185.28,4.70316456]
[1735321093271,19.99110386,185.39,185.29,4.70316456]
[1735321093471,19.99110386,185.39,185.28,4.90847171]
[1735321093672,2.7024,185.3,185.29,4.70107576]
[1735321094466,2.7026,185.29,185.27,4.90749372]
[1735321094667,2.7026,185.29,185.28,4.70092899]
[1735321094869,2.7026,185.29,185.28,4.700783]
[1735321095070,19.99110386,185.39,185.26,1.6486]
[1735321095267,19.99110386,185.35,185.2,19.99110386]
[1735321095574,19.99110386,185.35,185.21,13.79230622]
[1735321095769,2.7033,185.25,185.22,8.88308001]
[1735321096071,19.99110386,185.35,185.23,4.70352016]
[1735321096276,2.7032,185.25,185.24,4.70352016]
[1735321096476,19.99110386,185.29,185.22,4.70077443]
[1735321096775,19.99110386,185.29,185.13,1.6622]
[1735321097074,19.99110386,185.29,185.15,22.69570386]
[1735321097275,19.99110386,185.29,185.2,4.70356617]
[1735321097477,19.99110386,185.29,185.17,4.18057515]
[1735321097679,19.99110386,185.32,185.2,4.70235105]
[1735321097975,19.99110386,185.39,185.21,28.87403006]
[1735321098271,2.7027,185.29,185.22,6.87904038]
[1735321098576,2.7027,185.29,185.23,13.78445985]
[1735321098776,2.7027,185.29,185.24,4.69747871]
[1735321099073,1.559,185.38,185.22,4.3402]
[1735321099278,2.7025,185.3,185.24,2.7033]
[1735321099577,1.559,185.38,185.25,4.69692542]
[1735321099777,2.7018,185.35,185.26,4.69692542]
[1735321099970,1.559,185.38,185.25,4.90514554]
[1735321100171,1.559,185.38,185.26,9.60242983]
[1735321100371,4.8078,185.38,185.26,4.90514554]
[1735321100572,4.8078,185.38,185.25,4.69728429]
[1735321100871,4.8078,185.38,185.26,4.69728429]
[1735321101177,4.8078,185.38,185.25,9.60054873]
[1735321101473,4.8078,185.38,185.26,4.69553509]
[1735321101672,4.8078,185.38,185.24,4.69553509]
[1735321101871,19.99110386,185.36,185.24,4.69553509]
[1735321102274,19.99110386,185.36,185.23,9.59917159]
[1735321102578,19.99110386,185.36,185.22,6.5402365]
[1735321103075,2.7034,185.24,185.22,1.6366]
[1735321103471,19.99110386,185.36,185.22,1.6366]
[1735321104580,19.99110386,185.33,185.22,1.6366]
[1735321105479,2.7033,185.24,185.22,1.6366]
[1735321105979,19.99110386,185.33,185.19,3.1742]
[1735321106181,2.7037,185.22,185.19,3.1742]
[1735321107777,2.7035,185.24,185.19,23.16530386]
[1735321107982,4.8078,185.38,185.19,23.16530386]
[1735321107983,19.99110386,185.36,185.2,9.60339122]
[1735321108185,4.8078,185.38,185.22,19.99110386]
[1735321108382,2.7026,185.29,185.25,2.7032]
[1735321109077,4.8078,185.38,185.25,21.60820386]
[1735321109278,4.8078,185.38,185.28,19.99110386]
[1735321109780,4.8078,185.38,185.25,21.60820386]
[1735321109984,1.559,185.38,185.26,8.87284296]
[1735321110177,19.99110386,185.42,185.29,2.7026]
[1735321111185,2.7021,185.33,185.29,7.60864241]
[1735321111387,2.7021,185.33,185.29,12.30494159]
[1735321111685,2.7021,185.33,185.3,4.69629918]
[1735321111880,19.99110386,185.42,185.3,2.7024]
[1735321112081,19.99110386,185.45,185.29,13.78211672]
[1735321112273,19.99110386,185.45,185.31,19.99110386]
[1735321112482,19.99110386,185.45,185.32,7.40865658]
[1735321112683,19.99110386,185.45,185.32,2.7022]
[1735321113379,19.99110386,185.45,185.32,7.40713644]
[1735321113584,19.99110386,185.45,185.32,12.32339527]
[1735321114886,2.7015,185.37,185.32,12.32339527]
[1735321115079,19.99110386,185.45,185.32,9.62119527]
[1735321115286,19.99110386,185.45,185.29,4.91625883]
[1735321115481,19.99110386,185.45,185.3,4.71224191]
[1735321115688,19.99110386,185.45,185.31,7.41454191]
[1735321115889,19.99110386,185.45,185.31,4.71224191]
[1735321116189,19.99110386,185.45,185.29,13.81832215]
[1735321116384,2.7016,185.37,185.3,9.62850074]
[1735321116686,4.8486,185.46,185.31,33.80942601]
[1735321116890,4.8486,185.46,185.32,13.81916716]
[1735321117082,2.7008,185.42,185.36,2.7014]
[1735321117284,4.8486,185.46,185.34,9.62850074]
[1735321117480,4.8486,185.46,185.35,9.62850074]
[1735321117687,4.8486,185.46,185.35,9.63653111]
[1735321117883,4.8486,185.46,185.36,9.63573674]
[1735321118086,4.8486,185.46,185.38,2.7012]
[1735321118087,2.7004,185.44,185.38,2.7012]
[1735321118485,19.99110386,185.51,185.39,9.64402924]
[1735321118690,19.99110386,185.51,185.38,4.19231247]
[1735321118885,19.99110386,185.51,185.4,2.701]
[1735321119079,4.916,185.53,185.38,4.19231247]
[1735321119385,4.916,185.53,185.39,9.63898769]
[1735321119586,4.916,185.53,185.4,12.33998769]
[1735321119787,4.916,185.53,185.4,7.62505519]
[1735321119986,4.916,185.53,185.4,2.701]
[1735321120185,4.916,185.53,185.4,4.92405519]
[1735321120387,2.7,185.48,185.42,2.7007]
[1735321120592,2.7,185.48,185.4,24.18144556]
[1735321120890,2.7,185.48,185.41,13.83115907]
[1735321121091,2.7,185.48,185.42,9.638435]
[1735321121392,4.916,185.53,185.43,2.7006]
[1735321121586,2.7,185.47,185.41,4.19272407]
[1735321121786,2.7,185.47,185.42,4.71922243]
[1735321121987,4.916,185.53,185.43,4.92859976]
[1735321122486,4.916,185.53,185.41,4.72043529]
[1735321122692,4.916,185.53,185.42,4.72043529]
[1735321122888,4.916,185.53,185.43,4.72043529]
[1735321123086,4.916,185.53,185.4,19.99110386]
[1735321123284,32.07699711,185.63,185.43,19.99110386]
[1735321123485,4.878,185.62,185.44,13.72523417]
[1735321123793,19.99110386,185.61,185.46,19.99110386]
[1735321123995,4.878,185.62,185.46,19.99110386]
[1735321123996,4.878,185.62,185.47,13.84201943]
[1735321124196,2.6984,185.58,185.5,2.6995]
[1735321124489,1.6594,185.62,185.52,19.99110386]
[1735321124890,1.6594,185.62,185.53,1.6489]
[1735321125291,1.6594,185.62,185.53,6.36063314]
[1735321125494,2.6983,185.59,185.53,13.97985558]
[1735321125690,2.6983,185.59,185.53,6.56948004]
[1735321125889,2.6983,185.59,185.53,11.27511783]
[1735321126090,2.6981,185.61,185.55,2.6988]
[1735321127802,2.6981,185.61,185.56,2.6987]
[1735321128101,2.6975,185.65,185.54,1.6473]
[1735321128304,19.99110386,185.7,185.6,2.6981]
[1735321128499,19.99110386,185.7,185.55,19.99110386]
[1735321128500,19.99110386,185.73,185.55,19.99110386]
[1735321128695,2.697,185.68,185.58,19.99110386]
[1735321129096,19.99110386,185.73,185.58,19.99110386]
[1735321129406,2.6971,185.67,185.61,2.6979]
[1735321129703,3.2085,185.74,185.58,19.99110386]
[1735321130201,2.6969,185.68,185.62,2.6977]
[1735321131203,3.2085,185.74,185.62,2.6977]
[1735321131402,19.99110386,185.7,185.55,19.99110386]
[1735321131607,19.99110386,185.67,185.54,1.6473]
[1735321131903,1.5923,185.66,185.54,4.3463]
[1735321132601,2.6982,185.6,185.54,4.3463]
[1735321132805,1.5923,185.66,185.54,4.3463]
[1735321133106,2.6981,185.6,185.54,4.3463]
[1735321133295,1.5923,185.66,185.54,4.3463]
[1735321133495,2.6978,185.62,185.54,4.3463]
[1735321133700,3.1151,185.65,185.54,4.3463]
[1735321134504,3.1151,185.65,185.54,1.6473]
[1735321134699,19.99110386,185.64,185.49,19.99110386]
[1735321135102,2.6987,185.56,185.5,2.6995]
[1735321135403,19.99110386,185.64,185.48,4.7362]
[1735321135603,2.6992,185.53,185.48,4.7362]
[1735321135806,2.6992,185.53,185.48,3.2017]
[1735321136003,19.99110386,185.61,185.47,2.67206677]
[1735321136302,19.99110386,185.58,185.47,2.67206677]
[1735321136907,3.1151,185.65,185.47,2.67206677]
[1735321136908,2.6993,185.52,185.47,5.37196677]
[1735321137116,19.99110386,185.61,185.47,2.67206677]
[1735321137305,19.99110386,185.64,185.47,2.67206677]
[1735321137505,19.99110386,185.64,185.47,4.24826677]
[1735321138108,19.99110386,185.64,185.51,2.6994]
[1735321138310,19.99110386,185.64,185.47,4.24826677]
[1735321139310,19.99110386,185.64,185.49,19.99110386]
[1735321139708,19.99110386,185.64,185.49,22.69080386]
[1735321139907,19.99110386,185.64,185.49,19.99110386]
[1735321141112,2.6988,185.56,185.5,2.6995]
[1735321141910,19.99110386,185.64,185.49,19.99110386]
[1735321142107,2.6985,185.58,185.51,2.6994]
[1735321142309,19.99110386,185.64,185.51,2.6994]
[1735321142804,3.1151,185.65,185.52,19.99110386]
[1735321143208,3.1151,185.65,185.55,19.99110386]
[1735321143413,1.5923,185.66,185.55,19.99110386]
[1735321143602,1.5923,185.66,185.58,19.99110386]
[1735321144811,19.99110386,185.73,185.58,19.99110386]
[1735321145005,1.543,185.72,185.58,19.99110386]
[1735321146109,2.697,185.68,185.62,2.6977]
[1735321146309,1.543,185.72,185.61,19.99110386]
[1735321146508,3.1645,185.75,185.61,19.99110386]
[1735321146703,1.6671,185.74,185.61,19.99110386]
[1735321147916,3.08014437,185.81,185.67,19.99110386]
[1735321148109,1.6671,185.8,185.67,19.99110386]
[1735321148304,3.3465,185.8,185.64,19.99110386]
[1735321148506,19.99110386,185.76,185.62,1.5591]
[1735321149013,2.6969,185.69,185.63,2.6977]
[1735321149316,19.99110386,185.76,185.61,19.99110386]
[1735321149513,19.99110386,185.76,185.58,21.55020386]
[1735321149815,19.99110386,185.73,185.58,1.5591]
[1735321150114,2.6981,185.6,185.56,1.5493]
[1735321150315,19.99110386,185.7,185.56,1.5493]
[1735321150510,1.5744,185.69,185.56,1.5493]
[1735321150716,19.99110386,185.67,185.53,1.5591]
[1735321151612,1.5744,185.69,185.53,10.39451015]
[1735321151817,1.5744,185.69,185.53,15.27963521]
[1735321152216,1.5744,185.69,185.55,2.6988]
[1735321152819,2.6979,185.62,185.56,2.6987]
[1735321153423,19.99110386,185.67,185.54,9.56887705]
[1735321153912,19.99110386,185.67,185.54,4.68375199]
[1735321154113,1.5744,185.69,185.55,24.67485585]
[1735321154310,1.5744,185.69,185.58,19.99110386]
[1735321154514,2.6967,185.7,185.61,19.99110386]
[1735321154916,3.2759,185.72,185.62,4.68864934]
[1735321155120,2.6966,185.71,185.64,2.6974]
[1735321155311,3.2759,185.72,185.64,4.68864934]
[1735321155518,3.2759,185.72,185.62,9.58370759]
[1735321155911,1.5965,185.72,185.63,4.68864934]
[1735321156121,21.67150386,185.79,185.64,4.68864934]
[1735321156421,2.6963,185.72,185.65,9.58370759]
[1735321156622,1.627,185.78,185.65,4.89505825]
[1735321156919,1.627,185.78,185.66,9.58378008]
[1735321157119,1.627,185.78,185.67,4.68872183]
[1735321157315,1.627,185.78,185.68,9.58378008]
[1735321157521,2.6961,185.74,185.69,12.28058008]
[1735321157721,1.627,185.78,185.69,4.89505825]
[1735321157916,1.627,185.78,185.64,1.5289]
[1735321157917,2.6966,185.71,185.68,4.89505825]
[1735321158425,1.627,185.78,185.67,4.68784514]
[1735321158620,2.6964,185.72,185.68,4.68784514]
[1735321158825,1.627,185.78,185.67,4.89505825]
[1735321159019,2.696,185.75,185.66,7.59225825]
[1735321159226,1.627,185.78,185.67,4.69022802]
[1735321159521,1.627,185.78,185.68,4.69284585]
[1735321159721,1.627,185.78,185.67,4.89505825]
[1735321159920,1.627,185.78,185.66,2.6972]
[1735321160120,1.627,185.78,185.67,4.69271587]
[1735321160321,1.627,185.78,185.68,4.69623716]
[1735321160521,1.627,185.78,185.66,2.6972]
[1735321160720,1.627,185.78,185.67,9.59960159]
[1735321160920,1.627,185.78,185.68,9.59960159]
[1735321161120,2.6965,185.72,185.68,4.90390681]
[1735321161321,2.6965,185.72,185.67,4.17316261]
[1735321161621,2.697,185.68,185.64,5.70206261]
[1735321161821,2.697,185.68,185.65,4.70265205]
[1735321162022,19.99110386,185.73,185.62,4.17316261]
[1735321162320,19.99110386,185.73,185.63,4.70895809]
[1735321162517,19.99110386,185.7,185.58,31.94684346]
[1735321162723,4.9006,185.69,185.59,9.10627419]
[1735321162923,4.9006,185.69,185.6,13.81688218]
[1735321162924,2.6972,185.67,185.6,13.81688218]
[1735321163123,4.9006,185.69,185.61,4.71060799]
[1735321163318,4.9006,185.69,185.62,4.71060799]
[1735321163521,2.6977,185.63,185.61,4.91972588]
[1735321163723,2.6977,185.63,185.62,4.71468089]
[1735321163922,19.99110386,185.67,185.57,9.11570849]
[1735321164120,2.6975,185.65,185.58,8.9065154]
[1735321164428,19.99110386,185.67,185.59,9.64191777]
[1735321164629,19.99110386,185.67,185.6,4.71636234]
[1735321164824,2.6976,185.64,185.57,2.6985]
[1735321165019,4.9006,185.69,185.58,8.91593079]
[1735321165224,4.9006,185.69,185.59,13.84470488]
[1735321165424,2.697,185.68,185.63,2.6976]
[1735321165626,4.9006,185.69,185.64,4.7212787]
[1735321165829,4.9006,185.69,185.58,4.19678171]
[1735321166130,1.5538,185.8,185.67,19.99110386]
[1735321166327,4.8162,185.8,185.68,8.91525697]
[1735321166524,4.8162,185.8,185.69,4.19495458]
[1735321166721,4.8162,185.8,185.7,9.12478137]
[1735321166928,24.80730386,185.8,185.71,4.71933945]
[1735321167225,24.80730386,185.8,185.65,4.19608619]
[1735321167426,24.80730386,185.8,185.66,4.72054861]
[1735321167630,24.80730386,185.8,185.67,4.19684837]
[1735321167829,24.80730386,185.8,185.68,4.19684837]
[1735321168028,24.80730386,185.8,185.69,9.12833995]
[1735321168227,24.80730386,185.8,185.69,4.93149158]
[1735321168427,2.6961,185.74,185.7,13.84986407]
[1735321168635,4.8162,185.8,185.71,8.91921622]
[1735321168823,4.8162,185.8,185.7,4.93149158]
[1735321168824,4.8162,185.8,185.72,4.72242068]
[1735321169026,4.8162,185.8,185.73,4.72242068]
[1735321169326,2.6958,185.77,185.7,2.6966]
[1735321169522,4.8162,185.8,185.71,9.12911876]
[1735321169723,2.6961,185.74,185.68,2.697]
[1735321169925,2.6961,185.74,185.69,13.85234355]
[1735321170125,2.6961,185.74,185.7,8.91960618]
[1735321170324,2.6961,185.74,185.68,2.697]
[1735321170325,2.6961,185.74,185.71,9.65500488]
[1735321170529,2.696,185.76,185.72,4.72155897]
[1735321170731,4.8162,185.8,185.72,4.93273737]
[1735321170931,19.99110386,185.88,185.73,4.19489227]
[1735321171123,19.99110386,185.88,185.74,8.91523161]
[1735321171124,1.5565,185.87,185.74,8.91523161]
[1735321171323,1.5565,185.87,185.74,4.72033934]
[1735321171526,1.5565,185.87,185.75,9.65307671]
[1735321171728,1.5565,185.87,185.75,4.93273737]
[1735321171928,1.5565,185.87,185.72,4.19104462]
[1735321171929,19.99110386,185.85,185.72,4.19104462]
[1735321172132,19.99110386,185.85,185.73,4.71559949]
[1735321172431,19.99110386,185.85,185.73,4.92563087]
[1735321172635,1.5565,185.87,185.74,4.71330556]
[1735321172932,1.5565,185.87,185.75,9.63562965]
[1735321173132,2.6948,185.84,185.76,4.71183747]
[1735321173329,2.6948,185.84,185.77,4.71183747]
[1735321173529,1.5565,185.87,185.73,4.18404115]
[1735321173723,2.695,185.82,185.75,2.6959]
[1735321173927,1.5565,185.87,185.76,4.70730664]
[1735321174125,1.5565,185.87,185.74,4.91692411]
[1735321174126,19.99110386,185.85,185.74,4.91692411]
[1735321174430,19.99110386,185.82,185.7,13.81458943]
[1735321174633,3.1336,185.81,185.71,4.70990899]
[1735321174836,3.1336,185.81,185.71,4.91903948]
[1735321175028,3.1336,185.81,185.71,4.71004611]
[1735321175234,3.1336,185.81,185.69,24.17703124]
[1735321175430,1.6171,185.81,185.72,19.99110386]
[1735321175731,1.6171,185.81,185.73,4.70887069]
[1735321175933,2.6955,185.8,185.74,2.6962]
[1735321176334,1.6171,185.81,185.73,4.70887069]
[1735321176536,3.2135,185.86,185.73,9.62555586]
[1735321176836,3.2135,185.86,185.75,19.99110386]
[1735321177029,2.695,185.83,185.78,2.6957]
[1735321177234,3.2135,185.86,185.75,19.99110386]
[1735321177534,2.6952,185.82,185.77,2.6958]
[1735321178035,2.695,185.84,185.78,2.6957]
[1735321178229,1.5565,185.87,185.75,19.99110386]
[1735321178937,1.5565,185.87,185.79,2.6954]
[1735321179135,5.30611472,185.9,185.78,19.99110386]
[1735321180336,5.30611472,185.9,185.79,1.5534]
[1735321180530,3.68321472,185.9,185.81,19.99110386]
[1735321180836,6.37731472,185.9,185.82,1.6321]
[1735321181139,3.68321472,185.9,185.82,1.6321]
[1735321182939,2.6936,185.93,185.88,2.6943]
[1735321183137,3.3457,185.96,185.84,19.99110386]
[1735321183932,2.6936,185.93,185.88,2.6941]
[1735321184335,19.99110386,186.0,185.85,9.59424122]
[1735321184536,19.99110386,186.03,185.85,13.76706613]
[1735321184742,2.6934,185.95,185.89,2.6941]
[1735321186240,2.6934,185.94,185.89,2.6941]
[1735321187047,19.99110386,186.03,185.86,9.58936045]
[1735321187238,2.6932,185.95,185.9,2.6939]
[1735321187440,19.99110386,186.03,185.87,19.99110386]
[1735321187742,4.8037,186.04,185.9,19.99110386]
[1735321188046,4.8037,186.04,185.91,6.32815873]
[1735321188241,2.6927,185.99,185.94,2.6933]
[1735321189242,2.6925,186.0,185.95,2.6932]
[1735321189442,4.8037,186.04,185.92,1.6671]
[1735321189842,1.5585,186.04,185.92,1.6671]
[1735321190036,3.68033008,186.05,185.93,19.99110386]
[1735321190236,3.68033008,186.05,185.99,2.6925]
[1735321190237,6.37223008,186.05,185.99,2.6925]
[1735321190450,6.37223008,186.05,185.96,19.99110386]
[1735321190944,6.37223008,186.05,186.0,2.6924]
[1735321191843,3.68033008,186.05,185.97,1.5574]
[1735321192047,3.68033008,186.05,185.96,2.693]
[1735321192645,3.68033008,186.05,185.97,19.99110386]
[1735321193238,2.6918,186.06,185.97,19.99110386]
[1735321193436,100.0,186.1,185.97,19.99110386]
[1735321193642,2.6912,186.09,186.04,2.6919]
[1735321193946,100.0,186.1,185.97,19.99110386]
[1735321194146,2.6915,186.07,186.02,2.6921]
[1735321194443,100.0,186.1,185.97,19.99110386]
[1735321194941,100.0,186.1,185.94,19.99110386]
[1735321194942,100.0,186.1,186.0,19.99110386]
[1735321195144,100.0,186.1,186.01,3.2053]
[1735321195447,100.0,186.1,186.01,4.8588]
[1735321196439,2.6913,186.09,186.01,4.8588]
[1735321197447,2.6913,186.09,186.04,2.6919]
[1735321199049,100.0,186.1,185.87,7.27797332]
[1735321199250,119.99110386,186.1,185.92,19.99110386]
[1735321199451,119.99110386,186.1,185.93,4.64819595]
[1735321199658,2.6919,186.05,185.99,2.6926]
[1735321200154,119.99110386,186.1,185.99,2.6926]
[1735321200452,2.692,186.04,185.99,2.6926]
[1735321200646,100.0,186.1,185.96,1.5329]
[1735321200953,4.8057,186.09,185.96,1.5329]
[1735321201453,2.6917,186.06,185.96,1.5329]
[1735321201654,2.6917,186.06,185.97,3.2702]
[1735321201850,2.6917,186.06,186.01,2.6922]
[1735321202252,2.6917,186.06,185.97,3.2702]
[1735321202253,4.8057,186.09,185.97,3.2702]
[1735321202452,4.8057,186.09,185.97,1.666]
[1735321202949,4.8057,186.09,185.97,4.3588]
[1735321203150,4.8057,186.09,185.97,1.666]
[1735321203346,4.8057,186.09,185.92,19.99110386]
[1735321204852,2.6925,186.01,185.95,2.6931]
[1735321205050,4.8057,186.09,185.95,19.99110386]
[1735321205455,2.6921,186.03,185.98,2.6927]
[1735321205948,2.6919,186.05,186.0,2.6925]
[1735321206348,4.8057,186.09,186.0,2.6925]
[1735321206551,3.2249,186.09,185.98,19.99110386]
[1735321206751,100.0,186.1,186.01,19.99110386]
[1735321207160,100.0,186.1,186.05,2.6918]
[1735321207657,102.6911,186.1,186.05,2.6918]
[1735321208661,102.6911,186.1,186.06,2.6916]
[1735321209267,100.0,186.1,186.08,2.6913]
[1735321209567,100.0,186.1,186.04,19.99110386]
[1735321209968,94.9476,186.1,186.09,2.6912]
[1735321210166,76.07200001,186.1,186.09,2.6912]
[1735321212175,64.05688255,186.1,186.09,2.6912]
[1735321212973,2.69,186.18,186.08,9.4989555]
[1735321213174,2.69,186.18,186.13,2.6906]
[1735321213672,5.14022,186.2,186.19,2.6898]
[1735321217878,5.14022,186.2,186.19,22.68090386]
[1735321218083,1.6689,186.29,186.25,2.6888]
[1735321218278,1.6689,186.29,186.2,4.63422206]
[1735321218479,1.6689,186.29,186.23,2.6891]
[1735321218877,1.6689,186.29,186.19,19.99110386]
[1735321219085,3.201,186.32,186.22,19.99110386]
[1735321219477,1.6782,186.38,186.22,19.99110386]
[1735321219679,3.2684,186.37,186.22,19.99110386]
[1735321219885,3.2684,186.37,186.19,19.99110386]
[1735321220181,19.99110386,186.32,186.2,9.46971505]
[1735321220376,19.99110386,186.32,186.2,4.83788159]
[1735321220574,19.99110386,186.32,186.18,4.63367603]
[1735321220774,2.6888,186.26,186.19,2.6897]
[1735321220984,19.99110386,186.32,186.18,4.63417589]
[1735321221182,19.99110386,186.29,186.18,4.63417589]
[1735321221378,4.8317,186.28,186.14,9.47636892]
[1735321221580,4.8317,186.28,186.15,4.63417589]
[1735321221783,4.8317,186.28,186.16,4.63417589]
[1735321221974,4.8317,186.28,186.14,4.63417589]
[1735321222174,19.99110386,186.26,186.14,4.63417589]
[1735321222383,19.99110386,186.23,186.13,4.84219303]
[1735321222682,19.99110386,186.23,186.1,9.48511565]
[1735321222874,19.99110386,186.23,186.11,4.64292262]
[1735321223073,2.6899,186.18,186.11,7.33372262]
[1735321223277,4.8317,186.28,186.09,8.7765462]
[1735321223278,19.99110386,186.19,186.09,8.7765462]
[1735321223483,19.99110386,186.19,186.05,44.59207051]
[1735321223679,19.99110386,186.14,186.05,44.59207051]
[1735321223883,19.99110386,186.17,186.05,44.59207051]
[1735321224083,19.99110386,186.2,186.05,44.59207051]
[1735321224288,2.6901,186.17,186.09,2.6911]
[1735321224885,19.99110386,186.23,186.06,4.13622286]
[1735321225184,19.99110386,186.23,186.07,2.6914]
[1735321225383,19.99110386,186.23,186.06,4.13622286]
[1735321225584,2.6898,186.19,186.1,2.691]
[1735321225886,194.0,186.33,186.11,19.99110386]
[1735321225887,19.99110386,186.26,186.11,19.99110386]
[1735321226284,19.99110386,186.23,186.08,19.99110386]
[1735321226479,2.6903,186.16,186.08,19.99110386]
[1735321226678,19.99110386,186.23,186.08,19.99110386]
[1735321226877,19.99110386,186.23,186.09,2.6912]
[1735321227080,19.99110386,186.23,186.08,19.99110386]
[1735321227485,19.99110386,186.23,186.09,4.14130954]
[1735321227690,2.6897,186.2,186.09,4.14130954]
[1735321228183,19.99110386,186.26,186.09,4.14130954]
[1735321228391,19.99110386,186.23,186.09,4.14130954]
[1735321228585,19.99110386,186.23,186.06,1.6329]
[1735321228780,19.99110386,186.3,186.07,2.6915]
[1735321228781,19.99110386,186.2,186.07,2.6915]
[1735321229383,19.99110386,186.2,186.06,5.77853721]
[1735321229583,19.99110386,186.2,186.09,2.6912]
[1735321229988,4.7757,186.22,186.11,2.6908]
[1735321230196,4.7757,186.22,186.09,4.14813938]
[1735321230588,2.69,186.18,186.11,2.6909]